[Event "Titled Tuesday Blitz August 1 Late 2023"]
[White "Sivakumar, Shaashwath"]
[Black "Krzyzanowski, Marcin"]
[WhiteFideId "30912156"]
[BlackFideId "1132199"]
[WhiteElo "2607"]
[BlackElo "2777"]
[Result "0-1"]
[Round "5"]
[TimeControl "180+1"]
[Date "2023.08.01"]
[WhiteClock "0:00:09"]
[BlackClock "0:00:12"]
[Board "29"]

1. d4 {[%clk 0:03:00]}  Nf6 {[%clk 0:02:59]} 2. Bf4 {[%clk 0:02:49]}  e6 {[%clk 0:02:48]} 3. e3 {[%clk 0:02:49]}  c5 {[%clk 0:02:46]} 4. c3 {[%clk 0:02:48]}  Nc6 {[%clk 0:02:43]} 5. Nf3 {[%clk 0:02:47]}  b6 {[%clk 0:02:42]} 6. Nbd2 {[%clk 0:02:46]}  Bb7 {[%clk 0:02:42]} 7. Bd3 {[%clk 0:02:45]}  Be7 {[%clk 0:02:38]} 8. Qe2 {[%clk 0:02:45]}  d6 {[%clk 0:02:36]} 9. e4 {[%clk 0:02:43]}  h6 {[%clk 0:02:33]} 10. a3 {[%clk 0:02:41]}  Rc8 {[%clk 0:02:21]} 11. h3 {[%clk 0:02:40]}  cxd4 {[%clk 0:02:19]} 12. cxd4 {[%clk 0:02:39]}  O-O {[%clk 0:01:57]} 13. O-O {[%clk 0:02:36]}  Nh7 {[%clk 0:01:37]} 14. Rad1 {[%clk 0:02:31]}  Ng5 {[%clk 0:01:37]} 15. e5 {[%clk 0:02:27]}  dxe5 {[%clk 0:01:34]} 16. dxe5 {[%clk 0:02:26]}  Nd4 {[%clk 0:01:28]} 17. Qe3 {[%clk 0:01:56]}  Ndxf3+ {[%clk 0:00:52]} 18. Nxf3 {[%clk 0:01:53]}  Nxf3+ {[%clk 0:00:46]} 19. gxf3 {[%clk 0:01:53]}  Bc5 {[%clk 0:00:42]} 20. Qe2 {[%clk 0:01:38]}  Qh4 {[%clk 0:00:40]} 21. Bh2 {[%clk 0:01:25]}  Qxh3 {[%clk 0:00:33]} 22. Be4 {[%clk 0:01:25]}  Bxe4 {[%clk 0:00:32]} 23. Qxe4 {[%clk 0:01:26]}  Rcd8 {[%clk 0:00:31]} 24. b4 {[%clk 0:01:12]}  Bxf2+ {[%clk 0:00:31]} 25. Kxf2 {[%clk 0:01:08]}  Qxh2+ {[%clk 0:00:31]} 26. Ke3 {[%clk 0:01:08]}  Rc8 {[%clk 0:00:20]} 27. Qd4 {[%clk 0:00:49]}  Rc2 {[%clk 0:00:18]} 28. Qd3 {[%clk 0:00:35]}  Qxe5+ {[%clk 0:00:17]} 29. Qe4 {[%clk 0:00:34]}  Rc3+ {[%clk 0:00:17]} 30. Kf2 {[%clk 0:00:31]}  Qxe4 {[%clk 0:00:14]} 31. fxe4 {[%clk 0:00:31]}  Rxa3 {[%clk 0:00:15]} 32. Rd7 {[%clk 0:00:30]}  a5 {[%clk 0:00:15]} 33. bxa5 {[%clk 0:00:28]}  bxa5 {[%clk 0:00:16]} 34. Rc1 {[%clk 0:00:25]}  h5 {[%clk 0:00:13]} 35. Rcc7 {[%clk 0:00:24]}  a4 {[%clk 0:00:13]} 36. e5 {[%clk 0:00:21]}  Rb3 {[%clk 0:00:12]} 37. Ra7 {[%clk 0:00:20]}  Rb5 {[%clk 0:00:12]} 38. Rxa4 {[%clk 0:00:19]}  Rxe5 {[%clk 0:00:12]} 39. Raa7 {[%clk 0:00:19]}  Rf5+ {[%clk 0:00:13]} 40. Kg3 {[%clk 0:00:20]}  g6 {[%clk 0:00:14]} 41. Kh4 {[%clk 0:00:20]}  Kg7 {[%clk 0:00:14]} 42. Rdb7 {[%clk 0:00:20]}  Kf6 {[%clk 0:00:14]} 43. Rb6 {[%clk 0:00:20]}  Rf4+ {[%clk 0:00:14]} 44. Kg3 {[%clk 0:00:19]}  g5 {[%clk 0:00:15]} 45. Rb5 {[%clk 0:00:18]}  h4+ {[%clk 0:00:16]} 46. Kh3 {[%clk 0:00:18]}  Rd8 {[%clk 0:00:15]} 47. Ra3 {[%clk 0:00:17]}  Kg6 {[%clk 0:00:13]} 48. Rc5 {[%clk 0:00:14]}  Rfd4 {[%clk 0:00:13]} 49. Raa5 {[%clk 0:00:13]}  Rd3+ {[%clk 0:00:14]} 50. Kg2 {[%clk 0:00:13]}  h3+ {[%clk 0:00:14]} 51. Kh2 {[%clk 0:00:12]}  R8d5 {[%clk 0:00:13]} 52. Rc8 {[%clk 0:00:09]}  Rxa5 {[%clk 0:00:12]} 53. Rg8+ {[%clk 0:00:09]}  Kf5 {[%clk 0:00:12]} 54. Rxg5+ {[%clk 0:00:09]}  Kxg5 {[%clk 0:00:12]} 0-1


[Site "https://www.chess.com"]

[Event "Titled Tuesday Blitz August 1 Late 2023"]
[White "Weetik, Vjacheslav"]
[Black "Domingo Nunez, Ruben"]
[WhiteFideId "4153472"]
[BlackFideId "22245570"]
[WhiteElo "2760"]
[BlackElo "2574"]
[Result "1-0"]
[Round "5"]
[TimeControl "180+1"]
[Date "2023.08.01"]
[WhiteClock "0:00:52"]
[BlackClock "0:00:02"]
[Board "33"]

1. d4 {[%clk 0:02:59]}  g6 {[%clk 0:02:58]} 2. e4 {[%clk 0:02:59]}  Bg7 {[%clk 0:02:59]} 3. Nc3 {[%clk 0:02:59]}  c6 {[%clk 0:02:59]} 4. Bc4 {[%clk 0:02:59]}  d5 {[%clk 0:03:00]} 5. exd5 {[%clk 0:02:59]}  b5 {[%clk 0:03:01]} 6. Be2 {[%clk 0:03:00]}  b4 {[%clk 0:03:02]} 7. Na4 {[%clk 0:03:00]}  cxd5 {[%clk 0:03:02]} 8. Nf3 {[%clk 0:03:01]}  Bg4 {[%clk 0:03:02]} 9. O-O {[%clk 0:03:00]}  Nf6 {[%clk 0:03:02]} 10. a3 {[%clk 0:02:53]}  bxa3 {[%clk 0:03:01]} 11. b3 {[%clk 0:02:53]}  O-O {[%clk 0:02:59]} 12. Bxa3 {[%clk 0:02:53]}  Nc6 {[%clk 0:02:49]} 13. h3 {[%clk 0:02:49]}  Bxf3 {[%clk 0:02:47]} 14. Bxf3 {[%clk 0:02:49]}  Re8 {[%clk 0:02:45]} 15. Bb2 {[%clk 0:02:23]}  e6 {[%clk 0:02:35]} 16. Nc5 {[%clk 0:02:19]}  Nd7 {[%clk 0:02:33]} 17. Na6 {[%clk 0:02:02]}  Qb6 {[%clk 0:02:29]} 18. c3 {[%clk 0:01:59]}  Bf8 {[%clk 0:01:58]} 19. b4 {[%clk 0:01:51]}  Bg7 {[%clk 0:01:51]} 20. Bc1 {[%clk 0:01:45]}  Ncb8 {[%clk 0:01:49]} 21. Be2 {[%clk 0:01:39]}  Rc8 {[%clk 0:01:47]} 22. Nc5 {[%clk 0:01:33]}  a5 {[%clk 0:01:47]} 23. Bf4 {[%clk 0:01:30]}  Ra7 {[%clk 0:01:41]} 24. Qa4 {[%clk 0:01:28]}  Nxc5 {[%clk 0:01:16]} 25. bxc5 {[%clk 0:01:25]}  Qd8 {[%clk 0:01:13]} 26. Rfb1 {[%clk 0:01:14]}  e5 {[%clk 0:01:09]} 27. Be3 {[%clk 0:01:02]}  f5 {[%clk 0:00:33]} 28. Rb6 {[%clk 0:00:54]}  f4 {[%clk 0:00:32]} 29. Bd2 {[%clk 0:00:53]}  Rac7 {[%clk 0:00:23]} 30. Bg4 {[%clk 0:00:51]}  exd4 {[%clk 0:00:17]} 31. cxd4 {[%clk 0:00:52]}  Nd7 {[%clk 0:00:02]} 32. Rd6 {[%clk 0:00:52]} 1-0


[Site "https://www.chess.com"]

[Event "Titled Tuesday Blitz August 1 Late 2023"]
[White "Matinian, Nikita"]
[Black "Vlassov, Nikolai"]
[WhiteFideId "24129100"]
[BlackFideId "4103360"]
[WhiteElo "2733"]
[BlackElo "2563"]
[Result "0-1"]
[Round "5"]
[TimeControl "180+1"]
[Date "2023.08.01"]
[WhiteClock "0:00:20"]
[BlackClock "0:01:38"]
[Board "36"]

1. e4 {[%clk 0:02:58]}  Nc6 {[%clk 0:02:58]} 2. Nf3 {[%clk 0:02:58]}  d5 {[%clk 0:02:58]} 3. exd5 {[%clk 0:02:58]}  Qxd5 {[%clk 0:02:57]} 4. Nc3 {[%clk 0:02:58]}  Qa5 {[%clk 0:02:57]} 5. d4 {[%clk 0:02:58]}  Bg4 {[%clk 0:02:56]} 6. Bb5 {[%clk 0:02:58]}  O-O-O {[%clk 0:02:56]} 7. Bxc6 {[%clk 0:02:55]}  bxc6 {[%clk 0:02:56]} 8. Qd3 {[%clk 0:02:35]}  c5 {[%clk 0:02:55]} 9. d5 {[%clk 0:02:15]}  e6 {[%clk 0:02:55]} 10. O-O {[%clk 0:02:11]}  c4 {[%clk 0:02:54]} 11. Qxc4 {[%clk 0:01:54]}  Bxf3 {[%clk 0:02:53]} 12. gxf3 {[%clk 0:01:51]}  exd5 {[%clk 0:02:53]} 13. Qg4+ {[%clk 0:01:51]}  Kb7 {[%clk 0:02:53]} 14. Rd1 {[%clk 0:01:31]}  Nf6 {[%clk 0:02:52]} 15. Qf5 {[%clk 0:01:32]}  Bb4 {[%clk 0:02:49]} 16. Bg5 {[%clk 0:01:23]}  d4 {[%clk 0:02:41]} 17. Nb5 {[%clk 0:00:43]}  Rd5 {[%clk 0:02:23]} 18. Qf4 {[%clk 0:00:44]}  Qxb5 {[%clk 0:02:19]} 19. Bxf6 {[%clk 0:00:44]}  gxf6 {[%clk 0:02:18]} 20. c4 {[%clk 0:00:44]}  Rg5+ {[%clk 0:02:01]} 21. Kh1 {[%clk 0:00:43]}  Qf5 {[%clk 0:01:56]} 22. Rxd4 {[%clk 0:00:41]}  Qxf4 {[%clk 0:01:51]} 23. Rxf4 {[%clk 0:00:42]}  f5 {[%clk 0:01:47]} 24. a3 {[%clk 0:00:34]}  Bc5 {[%clk 0:01:46]} 25. Rf1 {[%clk 0:00:30]}  Rhg8 {[%clk 0:01:45]} 26. h4 {[%clk 0:00:30]}  Rh5 {[%clk 0:01:43]} 27. Rg1 {[%clk 0:00:28]}  Rg6 {[%clk 0:01:40]} 28. b4 {[%clk 0:00:24]}  Bxf2 {[%clk 0:01:39]} 29. Rxg6 {[%clk 0:00:22]}  hxg6 {[%clk 0:01:38]} 30. Kg2 {[%clk 0:00:20]}  Be3 {[%clk 0:01:38]} 0-1


[Site "https://www.chess.com"]

[Event "Titled Tuesday Blitz August 1 Late 2023"]
[White "Berezin, Viktor"]
[Black "Krishna C R G"]
[WhiteFideId "14107872"]
[BlackFideId "5018625"]
[WhiteElo "2538"]
[BlackElo "2717"]
[Result "0-1"]
[Round "5"]
[TimeControl "180+1"]
[Date "2023.08.01"]
[WhiteClock "0:00:05"]
[BlackClock "0:00:28"]
[Board "38"]

1. d4 {[%clk 0:02:57]}  f5 {[%clk 0:02:58]} 2. g3 {[%clk 0:02:56]}  Nf6 {[%clk 0:02:58]} 3. Bg2 {[%clk 0:02:56]}  g6 {[%clk 0:02:59]} 4. Nh3 {[%clk 0:02:56]}  Bg7 {[%clk 0:02:59]} 5. Nf4 {[%clk 0:02:56]}  e6 {[%clk 0:02:59]} 6. h4 {[%clk 0:02:56]}  Kf8 {[%clk 0:02:52]} 7. h5 {[%clk 0:02:53]}  Kf7 {[%clk 0:02:51]} 8. c3 {[%clk 0:02:49]}  Nc6 {[%clk 0:02:46]} 9. Nd2 {[%clk 0:02:49]}  Ne7 {[%clk 0:02:46]} 10. Nf3 {[%clk 0:02:49]}  Ng4 {[%clk 0:02:30]} 11. e4 {[%clk 0:02:38]}  Bf6 {[%clk 0:02:15]} 12. h6 {[%clk 0:02:13]}  d6 {[%clk 0:02:11]} 13. Nh3 {[%clk 0:01:37]}  Re8 {[%clk 0:02:10]} 14. Nfg5+ {[%clk 0:01:28]}  Kg8 {[%clk 0:02:10]} 15. Qb3 {[%clk 0:01:29]}  Nc6 {[%clk 0:02:01]} 16. f3 {[%clk 0:00:59]}  Nxh6 {[%clk 0:02:00]} 17. Qc2 {[%clk 0:00:26]}  Qe7 {[%clk 0:01:52]} 18. Be3 {[%clk 0:00:21]}  Bd7 {[%clk 0:01:39]} 19. O-O-O {[%clk 0:00:21]}  Bg7 {[%clk 0:01:31]} 20. Qd2 {[%clk 0:00:20]}  Nd8 {[%clk 0:01:25]} 21. Nxh7 {[%clk 0:00:19]}  Kxh7 {[%clk 0:00:59]} 22. Bg5 {[%clk 0:00:18]}  Qf8 {[%clk 0:00:54]} 23. exf5 {[%clk 0:00:06]}  exf5 {[%clk 0:00:49]} 24. Bxh6 {[%clk 0:00:03]}  Bxh6 {[%clk 0:00:49]} 25. Ng5+ {[%clk 0:00:04]}  Kg8 {[%clk 0:00:49]} 26. f4 {[%clk 0:00:02]}  Bxg5 {[%clk 0:00:49]} 27. fxg5 {[%clk 0:00:02]}  c6 {[%clk 0:00:47]} 28. Rh6 {[%clk 0:00:02]}  Qg7 {[%clk 0:00:42]} 29. Rdh1 {[%clk 0:00:03]}  Nf7 {[%clk 0:00:43]} 30. Rh7 {[%clk 0:00:03]}  Qxh7 {[%clk 0:00:44]} 31. Rxh7 {[%clk 0:00:04]}  Kxh7 {[%clk 0:00:44]} 32. d5 {[%clk 0:00:05]}  c5 {[%clk 0:00:44]} 33. Qf4 {[%clk 0:00:05]}  Re5 {[%clk 0:00:44]} 34. Bf1 {[%clk 0:00:05]}  Rae8 {[%clk 0:00:43]} 35. Bd3 {[%clk 0:00:05]}  Kg7 {[%clk 0:00:38]} 36. Kc2 {[%clk 0:00:05]}  Rh8 {[%clk 0:00:37]} 37. g4 {[%clk 0:00:06]}  Rh4 {[%clk 0:00:36]} 38. Qf2 {[%clk 0:00:06]}  Rxg4 {[%clk 0:00:35]} 39. b4 {[%clk 0:00:06]}  b6 {[%clk 0:00:33]} 40. bxc5 {[%clk 0:00:06]}  bxc5 {[%clk 0:00:32]} 41. c4 {[%clk 0:00:07]}  Rxg5 {[%clk 0:00:30]} 42. Kc3 {[%clk 0:00:05]}  Rg4 {[%clk 0:00:28]} 0-1


[Site "https://www.chess.com"]

[Event "Titled Tuesday Blitz August 1 Late 2023"]
[White "Romero Pallares, Daniel"]
[Black "nickVet"]
[WhiteFideId "32025637"]
[WhiteElo "2513"]
[BlackElo "2702"]
[Result "0-1"]
[Round "5"]
[TimeControl "180+1"]
[Date "2023.08.01"]
[WhiteClock "0:01:00"]
[BlackClock "0:01:18"]
[Board "41"]

1. d4 {[%clk 0:03:00]}  d5 {[%clk 0:03:00]} 2. Nc3 {[%clk 0:03:01]}  Nf6 {[%clk 0:03:00]} 3. Bf4 {[%clk 0:03:01]}  e6 {[%clk 0:02:54]} 4. Nb5 {[%clk 0:02:51]}  Bb4+ {[%clk 0:02:54]} 5. c3 {[%clk 0:02:48]}  Ba5 {[%clk 0:02:54]} 6. Nf3 {[%clk 0:02:42]}  O-O {[%clk 0:02:53]} 7. e3 {[%clk 0:02:42]}  c6 {[%clk 0:02:35]} 8. Na3 {[%clk 0:02:39]}  Bc7 {[%clk 0:02:34]} 9. Bd3 {[%clk 0:02:37]}  Nbd7 {[%clk 0:02:34]} 10. Nb1 {[%clk 0:02:33]}  Re8 {[%clk 0:02:32]} 11. Nbd2 {[%clk 0:02:28]}  e5 {[%clk 0:02:31]} 12. dxe5 {[%clk 0:02:28]}  Nxe5 {[%clk 0:02:31]} 13. Nxe5 {[%clk 0:02:24]}  Bxe5 {[%clk 0:02:32]} 14. O-O {[%clk 0:02:22]}  Bxf4 {[%clk 0:02:31]} 15. exf4 {[%clk 0:02:23]}  Qc7 {[%clk 0:02:26]} 16. g3 {[%clk 0:02:20]}  Bh3 {[%clk 0:02:23]} 17. Re1 {[%clk 0:02:18]}  Rxe1+ {[%clk 0:02:23]} 18. Qxe1 {[%clk 0:02:19]}  Re8 {[%clk 0:02:24]} 19. Qd1 {[%clk 0:02:16]}  Qb6 {[%clk 0:02:23]} 20. Nb3 {[%clk 0:02:11]}  c5 {[%clk 0:02:23]} 21. c4 {[%clk 0:02:08]}  d4 {[%clk 0:02:14]} 22. Qd2 {[%clk 0:02:04]}  Qc6 {[%clk 0:01:56]} 23. Bf1 {[%clk 0:02:00]}  Bxf1 {[%clk 0:01:57]} 24. Rxf1 {[%clk 0:02:00]}  b6 {[%clk 0:01:57]} 25. Re1 {[%clk 0:01:58]}  Rxe1+ {[%clk 0:01:54]} 26. Qxe1 {[%clk 0:01:59]}  Qe4 {[%clk 0:01:55]} 27. Qxe4 {[%clk 0:01:48]}  Nxe4 {[%clk 0:01:55]} 28. Kf1 {[%clk 0:01:39]}  h5 {[%clk 0:01:50]} 29. Ke2 {[%clk 0:01:39]}  Kf8 {[%clk 0:01:45]} 30. Nc1 {[%clk 0:01:39]}  Ke7 {[%clk 0:01:44]} 31. Nd3 {[%clk 0:01:38]}  Nd6 {[%clk 0:01:42]} 32. b3 {[%clk 0:01:36]}  f6 {[%clk 0:01:43]} 33. Kf3 {[%clk 0:01:32]}  Kd7 {[%clk 0:01:40]} 34. h3 {[%clk 0:01:32]}  Kc6 {[%clk 0:01:38]} 35. g4 {[%clk 0:01:32]}  hxg4+ {[%clk 0:01:38]} 36. hxg4 {[%clk 0:01:33]}  a6 {[%clk 0:01:34]} 37. a4 {[%clk 0:01:29]}  b5 {[%clk 0:01:33]} 38. axb5+ {[%clk 0:01:30]}  axb5 {[%clk 0:01:33]} 39. Nb2 {[%clk 0:01:30]}  Kb6 {[%clk 0:01:28]} 40. Ke2 {[%clk 0:01:20]}  Ka5 {[%clk 0:01:24]} 41. Kd3 {[%clk 0:01:13]}  Kb4 {[%clk 0:01:20]} 42. cxb5 {[%clk 0:01:14]}  Kxb3 {[%clk 0:01:21]} 43. Nd1 {[%clk 0:01:05]}  Nxb5 {[%clk 0:01:19]} 44. Ke4 {[%clk 0:01:00]}  c4 {[%clk 0:01:18]} 0-1


[Site "https://www.chess.com"]

[Event "Titled Tuesday Blitz August 1 Late 2023"]
[White "Kuzmicz, Krystian"]
[Black "Mike24147"]
[WhiteFideId "1119125"]
[WhiteElo "2691"]
[BlackElo "2399"]
[Result "1-0"]
[Round "5"]
[TimeControl "180+1"]
[Date "2023.08.01"]
[WhiteClock "0:01:53"]
[BlackClock "0:00:39"]
[Board "44"]

1. e4 {[%clk 0:03:00]}  c5 {[%clk 0:02:59]} 2. d3 {[%clk 0:03:00]}  g6 {[%clk 0:02:58]} 3. g3 {[%clk 0:03:01]}  Bg7 {[%clk 0:02:59]} 4. Bg2 {[%clk 0:03:01]}  Nc6 {[%clk 0:02:59]} 5. f4 {[%clk 0:03:02]}  d6 {[%clk 0:02:59]} 6. Nf3 {[%clk 0:03:03]}  Nf6 {[%clk 0:02:59]} 7. O-O {[%clk 0:03:03]}  O-O {[%clk 0:02:59]} 8. Nc3 {[%clk 0:03:03]}  Bg4 {[%clk 0:02:57]} 9. h3 {[%clk 0:03:04]}  Bxf3 {[%clk 0:02:57]} 10. Qxf3 {[%clk 0:03:05]}  Rb8 {[%clk 0:02:56]} 11. g4 {[%clk 0:03:05]}  b5 {[%clk 0:02:48]} 12. g5 {[%clk 0:03:05]}  Nh5 {[%clk 0:02:44]} 13. f5 {[%clk 0:03:04]}  Ne5 {[%clk 0:02:32]} 14. Qf2 {[%clk 0:03:01]}  b4 {[%clk 0:02:22]} 15. Nd5 {[%clk 0:03:01]}  e6 {[%clk 0:02:17]} 16. Nf4 {[%clk 0:02:39]}  Nxf4 {[%clk 0:02:15]} 17. Bxf4 {[%clk 0:02:38]}  exf5 {[%clk 0:02:15]} 18. exf5 {[%clk 0:02:37]}  f6 {[%clk 0:02:05]} 19. Bxe5 {[%clk 0:02:20]}  dxe5 {[%clk 0:01:51]} 20. fxg6 {[%clk 0:02:17]}  fxg5 {[%clk 0:01:29]} 21. gxh7+ {[%clk 0:02:15]}  Kh8 {[%clk 0:01:30]} 22. Qxc5 {[%clk 0:02:14]}  Rxf1+ {[%clk 0:01:24]} 23. Rxf1 {[%clk 0:02:13]}  e4 {[%clk 0:01:23]} 24. Kh1 {[%clk 0:02:10]}  exd3 {[%clk 0:01:18]} 25. cxd3 {[%clk 0:02:06]}  Qxd3 {[%clk 0:01:08]} 26. Qxg5 {[%clk 0:02:05]}  Qxh7 {[%clk 0:00:58]} 27. Rf4 {[%clk 0:01:56]}  Bh6 {[%clk 0:00:49]} 28. Qe5+ {[%clk 0:01:54]}  Qg7 {[%clk 0:00:40]} 29. Qxb8+ {[%clk 0:01:53]}  Kh7 {[%clk 0:00:39]} 30. Be4+ {[%clk 0:01:53]} 1-0


[Site "https://www.chess.com"]

[Event "Titled Tuesday Blitz August 1 Late 2023"]
[White "Morefield, Jason"]
[Black "Spichkin, Alexander"]
[WhiteFideId "30920825"]
[BlackFideId "4144074"]
[WhiteElo "2681"]
[BlackElo "2378"]
[Result "1-0"]
[Round "5"]
[TimeControl "180+1"]
[Date "2023.08.01"]
[WhiteClock "0:00:04"]
[BlackClock "0:00:24"]
[Board "45"]

1. e4 {[%clk 0:03:00]}  e5 {[%clk 0:03:00]} 2. Nf3 {[%clk 0:03:00]}  d5 {[%clk 0:03:00]} 3. exd5 {[%clk 0:03:00]}  e4 {[%clk 0:03:01]} 4. Qe2 {[%clk 0:03:00]}  Nf6 {[%clk 0:03:01]} 5. d3 {[%clk 0:03:00]}  Bb4+ {[%clk 0:03:02]} 6. Bd2 {[%clk 0:02:59]}  O-O {[%clk 0:03:01]} 7. Bxb4 {[%clk 0:02:53]}  exf3 {[%clk 0:03:01]} 8. Qxf3 {[%clk 0:02:51]}  Re8+ {[%clk 0:03:01]} 9. Kd2 {[%clk 0:02:33]}  Nxd5 {[%clk 0:03:01]} 10. Bc5 {[%clk 0:02:22]}  Qg5+ {[%clk 0:02:43]} 11. Be3 {[%clk 0:02:22]}  Nxe3 {[%clk 0:02:42]} 12. fxe3 {[%clk 0:02:22]}  Nc6 {[%clk 0:02:41]} 13. Nc3 {[%clk 0:02:15]}  Ne5 {[%clk 0:02:41]} 14. Qf4 {[%clk 0:02:11]}  Qe7 {[%clk 0:02:41]} 15. Be2 {[%clk 0:02:07]}  Ng6 {[%clk 0:02:38]} 16. Qg3 {[%clk 0:02:03]}  Be6 {[%clk 0:02:38]} 17. h4 {[%clk 0:01:57]}  Qb4 {[%clk 0:02:30]} 18. a3 {[%clk 0:01:47]}  Qa5 {[%clk 0:02:28]} 19. h5 {[%clk 0:01:39]}  Ne7 {[%clk 0:02:28]} 20. e4 {[%clk 0:01:24]}  Nc6 {[%clk 0:02:16]} 21. h6 {[%clk 0:01:15]}  g6 {[%clk 0:02:16]} 22. Rh5 {[%clk 0:01:11]}  Qb6 {[%clk 0:02:11]} 23. Rb5 {[%clk 0:01:10]}  Qd4 {[%clk 0:02:11]} 24. Rxb7 {[%clk 0:01:03]}  Rab8 {[%clk 0:01:53]} 25. Rxb8 {[%clk 0:00:56]}  Rxb8 {[%clk 0:01:53]} 26. Qxc7 {[%clk 0:00:49]}  Qc5 {[%clk 0:01:53]} 27. Qf4 {[%clk 0:00:18]}  Rxb2 {[%clk 0:01:33]} 28. Qf6 {[%clk 0:00:18]}  Qd4 {[%clk 0:01:33]} 29. Qxd4 {[%clk 0:00:17]}  Nxd4 {[%clk 0:01:33]} 30. Rb1 {[%clk 0:00:12]}  Rxc2+ {[%clk 0:01:24]} 31. Ke3 {[%clk 0:00:13]}  Nc6 {[%clk 0:01:20]} 32. Nb5 {[%clk 0:00:08]}  Kf8 {[%clk 0:01:17]} 33. Bf3 {[%clk 0:00:08]}  Ba2 {[%clk 0:01:02]} 34. Rf1 {[%clk 0:00:04]}  Ke7 {[%clk 0:01:01]} 35. Rf2 {[%clk 0:00:03]}  Rc5 {[%clk 0:00:53]} 36. Rxa2 {[%clk 0:00:02]}  Rxb5 {[%clk 0:00:53]} 37. Rc2 {[%clk 0:00:02]}  Rb6 {[%clk 0:00:48]} 38. Rc3 {[%clk 0:00:02]}  Kd6 {[%clk 0:00:48]} 39. d4 {[%clk 0:00:02]}  Na5 {[%clk 0:00:48]} 40. e5+ {[%clk 0:00:03]}  Kd7 {[%clk 0:00:47]} 41. Bg4+ {[%clk 0:00:03]}  Ke7 {[%clk 0:00:46]} 42. Rc7+ {[%clk 0:00:03]}  Ke8 {[%clk 0:00:46]} 43. Rxa7 {[%clk 0:00:02]}  Nc4+ {[%clk 0:00:45]} 44. Ke4 {[%clk 0:00:02]}  Rb8 {[%clk 0:00:38]} 45. Ra4 {[%clk 0:00:01]}  Nb2 {[%clk 0:00:34]} 46. Rb4 {[%clk 0:00:02]}  Rxb4 {[%clk 0:00:33]} 47. axb4 {[%clk 0:00:03]}  Na4 {[%clk 0:00:33]} 48. Kd5 {[%clk 0:00:03]}  Nc3+ {[%clk 0:00:33]} 49. Kc5 {[%clk 0:00:03]}  Ne4+ {[%clk 0:00:33]} 50. Kc6 {[%clk 0:00:03]}  Kd8 {[%clk 0:00:33]} 51. b5 {[%clk 0:00:04]}  f5 {[%clk 0:00:32]} 52. exf6 {[%clk 0:00:04]}  Nxf6 {[%clk 0:00:31]} 53. Be6 {[%clk 0:00:04]}  Ke7 {[%clk 0:00:28]} 54. d5 {[%clk 0:00:04]}  Ne4 {[%clk 0:00:28]} 55. b6 {[%clk 0:00:05]}  Nd6 {[%clk 0:00:27]} 56. b7 {[%clk 0:00:05]}  Nxb7 {[%clk 0:00:27]} 57. Kxb7 {[%clk 0:00:06]}  Kd6 {[%clk 0:00:27]} 58. Kb6 {[%clk 0:00:07]}  Ke5 {[%clk 0:00:26]} 59. Kc5 {[%clk 0:00:07]}  Kf6 {[%clk 0:00:26]} 60. Kd6 {[%clk 0:00:07]}  Kg5 {[%clk 0:00:25]} 61. Ke5 {[%clk 0:00:07]}  Kxh6 {[%clk 0:00:26]} 62. d6 {[%clk 0:00:07]}  g5 {[%clk 0:00:26]} 63. d7 {[%clk 0:00:07]}  g4 {[%clk 0:00:27]} 64. d8=Q {[%clk 0:00:08]}  Kh5 {[%clk 0:00:26]} 65. Qg8 {[%clk 0:00:06]}  g3 {[%clk 0:00:25]} 66. Qxg3 {[%clk 0:00:04]}  Kh6 {[%clk 0:00:24]} 67. Kf6 {[%clk 0:00:04]}  Kh5 {[%clk 0:00:24]} 68. Qg5# {[%clk 0:00:04]} 1-0


[Site "https://www.chess.com"]

[Event "Titled Tuesday Blitz August 1 Late 2023"]
[White "Rosen, Eric"]
[Black "Nikologorsky, Matfei"]
[WhiteFideId "2032562"]
[BlackFideId "24102474"]
[WhiteElo "2680"]
[BlackElo "2368"]
[Result "0-1"]
[Round "5"]
[TimeControl "180+1"]
[Date "2023.08.01"]
[WhiteClock "0:00:01"]
[BlackClock "0:00:10"]
[Board "46"]

1. d4 {[%clk 0:03:00]}  Nf6 {[%clk 0:02:59]} 2. Bf4 {[%clk 0:03:01]}  e6 {[%clk 0:02:57]} 3. e3 {[%clk 0:03:02]}  b6 {[%clk 0:02:57]} 4. Qf3 {[%clk 0:03:01]}  d5 {[%clk 0:02:55]} 5. Nc3 {[%clk 0:03:01]}  a6 {[%clk 0:02:53]} 6. O-O-O {[%clk 0:03:01]}  Bb7 {[%clk 0:02:51]} 7. h4 {[%clk 0:03:00]}  Nbd7 {[%clk 0:02:50]} 8. h5 {[%clk 0:03:01]}  b5 {[%clk 0:02:28]} 9. Qg3 {[%clk 0:02:50]}  Rc8 {[%clk 0:02:21]} 10. f3 {[%clk 0:02:49]}  Nb6 {[%clk 0:02:16]} 11. Bd3 {[%clk 0:02:44]}  b4 {[%clk 0:02:12]} 12. Nce2 {[%clk 0:02:43]}  c5 {[%clk 0:02:01]} 13. dxc5 {[%clk 0:02:42]}  Rxc5 {[%clk 0:01:45]} 14. Kb1 {[%clk 0:02:42]}  Nc4 {[%clk 0:01:29]} 15. Nc1 {[%clk 0:02:31]}  a5 {[%clk 0:01:26]} 16. Nb3 {[%clk 0:02:31]}  Rc8 {[%clk 0:01:26]} 17. e4 {[%clk 0:02:08]}  a4 {[%clk 0:01:25]} 18. Nc1 {[%clk 0:02:08]}  Qb6 {[%clk 0:01:12]} 19. Nge2 {[%clk 0:02:04]}  dxe4 {[%clk 0:01:01]} 20. fxe4 {[%clk 0:02:00]}  Nxe4 {[%clk 0:01:00]} 21. Qe1 {[%clk 0:01:50]}  Nf2 {[%clk 0:00:47]} 22. Ng3 {[%clk 0:01:31]}  Nxd1 {[%clk 0:00:42]} 23. Qxd1 {[%clk 0:01:31]}  a3 {[%clk 0:00:36]} 24. Bxc4 {[%clk 0:01:23]}  Rxc4 {[%clk 0:00:36]} 25. b3 {[%clk 0:01:23]}  Rxf4 {[%clk 0:00:35]} 26. Nd3 {[%clk 0:01:23]}  Rd4 {[%clk 0:00:33]} 27. Qe1 {[%clk 0:01:11]}  Be7 {[%clk 0:00:29]} 28. Rf1 {[%clk 0:01:02]}  O-O {[%clk 0:00:27]} 29. h6 {[%clk 0:00:50]}  Rxd3 {[%clk 0:00:24]} 30. cxd3 {[%clk 0:00:39]}  Qd4 {[%clk 0:00:24]} 31. Qd2 {[%clk 0:00:17]}  Bf6 {[%clk 0:00:23]} 32. Kc2 {[%clk 0:00:18]}  Qb2+ {[%clk 0:00:20]} 33. Kd1 {[%clk 0:00:18]}  Qxd2+ {[%clk 0:00:20]} 34. Kxd2 {[%clk 0:00:19]}  Bc3+ {[%clk 0:00:21]} 35. Ke2 {[%clk 0:00:19]}  gxh6 {[%clk 0:00:21]} 36. Nh5 {[%clk 0:00:18]}  f5 {[%clk 0:00:21]} 37. Nf4 {[%clk 0:00:17]}  Kf7 {[%clk 0:00:20]} 38. g4 {[%clk 0:00:15]}  Rg8 {[%clk 0:00:20]} 39. gxf5 {[%clk 0:00:10]}  exf5 {[%clk 0:00:21]} 40. Kf2 {[%clk 0:00:09]}  Rg4 {[%clk 0:00:20]} 41. Ke3 {[%clk 0:00:07]}  Rg3+ {[%clk 0:00:20]} 42. Ke2 {[%clk 0:00:07]}  h5 {[%clk 0:00:19]} 43. Nxh5 {[%clk 0:00:07]}  Rg2+ {[%clk 0:00:19]} 44. Ke3 {[%clk 0:00:07]}  Rxa2 {[%clk 0:00:15]} 45. Ng3 {[%clk 0:00:08]}  Ra1 {[%clk 0:00:13]} 46. Rxf5+ {[%clk 0:00:08]}  Ke6 {[%clk 0:00:14]} 47. Rb5 {[%clk 0:00:07]}  Re1+ {[%clk 0:00:15]} 48. Kf4 {[%clk 0:00:06]}  a2 {[%clk 0:00:15]} 49. Rb6+ {[%clk 0:00:05]}  Kd5 {[%clk 0:00:14]} 50. Ne4 {[%clk 0:00:06]}  Rxe4+ {[%clk 0:00:10]} 51. dxe4+ {[%clk 0:00:07]}  Kc5 {[%clk 0:00:10]} 52. Rxb7 {[%clk 0:00:06]}  a1=Q {[%clk 0:00:11]} 53. Kf5 {[%clk 0:00:03]}  Qf1+ {[%clk 0:00:10]} 54. Ke6 {[%clk 0:00:03]}  Qf6+ {[%clk 0:00:11]} 55. Kd7 {[%clk 0:00:03]}  Qc6+ {[%clk 0:00:11]} 56. Ke7 {[%clk 0:00:03]}  Qxb7+ {[%clk 0:00:11]} 57. Ke6 {[%clk 0:00:03]}  Qxe4+ {[%clk 0:00:11]} 58. Kf7 {[%clk 0:00:04]}  Qb7+ {[%clk 0:00:10]} 59. Ke6 {[%clk 0:00:03]}  Qc6+ {[%clk 0:00:10]} 60. Kf5 {[%clk 0:00:01]}  Qe8 {[%clk 0:00:10]} 61. Kg5 {[%clk 0:00:01]}  Qf7 {[%clk 0:00:10]} 62. Kh6 {[%clk 0:00:01]}  Qg6# {[%clk 0:00:10]} 0-1


[Site "https://www.chess.com"]